bitfinex/quotes_SOLUSD_20240624
["timestamp","ask_amount","ask_price","bid_price","bid_amount"]
[1719255332429,4.021,129.35,129.27,7.7356]
[1719255332642,4.021,129.35,129.29,7.7345]
[1719255332810,4.021,129.35,129.28,23.38]
[1719255333012,4.021,129.35,129.29,30.9443]
[1719255333233,4.021,129.35,129.3,7.7336]
[1719255333530,4.021,129.35,129.3,30.9436]
[1719255333839,25.83,129.37,129.3,42.5448]
[1719255334023,25.83,129.37,129.3,50.2783]
[1719255335024,25.83,129.37,129.3,42.5448]
[1719255335225,25.83,129.37,129.29,23.21]
[1719255335428,25.83,129.37,129.3,0.17]
[1719255335814,25.83,129.37,129.29,23.21]
[1719255336231,25.83,129.37,129.3,23.21]
[1719255336613,25.83,129.37,129.28,7.735]
[1719255337027,25.83,129.37,129.29,23.21]
[1719255337606,25.83,129.37,129.28,0.17]
[1719255337821,25.83,129.37,129.28,0.34]
[1719255339315,0.34,129.36,129.27,42.5491]
[1719255339511,0.34,129.36,129.27,50.2847]
[1719255340011,0.34,129.36,129.27,23.21]
[1719255340208,0.34,129.36,129.27,30.9457]
[1719255340713,0.34,129.36,129.27,23.21]
[1719255342638,0.17,129.36,129.29,23.21]
[1719255342960,26.17,129.37,129.29,30.9443]
[1719255343633,26.17,129.37,129.29,23.21]
[1719255344213,26.17,129.37,129.28,42.7177]
[1719255344515,25.83,129.37,129.28,42.7177]
[1719255344717,4.021,129.38,129.3,30.9435]
[1719255344911,4.021,129.38,129.3,23.21]
[1719255345332,4.021,129.38,129.31,31.1128]
[1719255345531,4.021,129.38,129.33,23.21]
[1719255345729,4.021,129.42,129.36,23.21]
[1719255345937,4.021,129.42,129.36,50.2655]
[1719255346517,4.021,129.42,129.38,23.21]
[1719255346726,4.021,129.42,129.35,23.21]
[1719255346932,4.021,129.42,129.33,27.0616]
[1719255347126,4.021,129.42,129.34,7.9013]
[1719255347329,4.021,129.42,129.34,0.17]
[1719255347722,4.021,129.42,129.35,23.21]
[1719255348125,4.021,129.42,129.35,30.9407]
[1719255348327,4.021,129.42,129.36,31.1102]
[1719255348536,4.021,129.42,129.36,30.9403]
[1719255348735,4.021,129.42,129.37,31.1096]
[1719255349035,4.021,129.42,129.32,7.7326]
[1719255349214,4.021,129.42,129.34,7.7314]
[1719255349421,4.021,129.42,129.33,19.3299]
[1719255349624,4.021,129.42,129.33,27.0618]
[1719255349915,0.17,129.41,129.31,23.21]
[1719255350115,0.34,129.41,129.31,23.21]
[1719255350341,0.17,129.41,129.33,23.21]
[1719255350552,29.851,129.42,129.33,23.21]
[1719255350762,0.34,129.41,129.33,23.21]
[1719255351050,0.34,129.41,129.31,23.21]
[1719255351423,0.34,129.41,129.3,23.21]
[1719255352439,25.83,129.39,129.3,23.21]
[1719255352637,0.17,129.38,129.3,23.21]
[1719255353139,25.83,129.39,129.31,30.9432]
[1719255353330,0.17,129.41,129.31,30.9432]
[1719255353532,0.34,129.41,129.31,30.9432]
[1719255353732,0.17,129.41,129.33,23.21]
[1719255354046,29.851,129.42,129.33,30.9421]
[1719255354543,0.17,129.41,129.33,23.21]
[1719255354721,29.851,129.42,129.33,23.21]
[1719255355144,29.851,129.42,129.33,30.942]
[1719255355531,29.851,129.42,129.33,23.21]
[1719255355732,29.851,129.42,129.32,23.38]
[1719255355932,0.34,129.41,129.32,23.38]
[1719255356129,0.34,129.41,129.32,23.21]
[1719255356454,0.17,129.41,129.32,23.21]
[1719255356743,0.34,129.41,129.32,23.21]
[1719255356946,0.17,129.41,129.32,30.9427]
[1719255357133,0.17,129.41,129.33,0.17]
[1719255358250,0.17,129.41,129.32,23.21]
[1719255358462,0.17,129.41,129.32,30.9427]
[1719255358649,0.34,129.41,129.32,23.21]
[1719255358827,0.34,129.41,129.31,42.7127]
[1719255359149,0.34,129.41,129.31,50.446]
[1719255359347,0.34,129.41,129.32,30.9426]
[1719255359846,0.34,129.41,129.32,23.21]
[1719255360322,0.34,129.41,129.32,30.9423]
[1719255360526,4.021,129.42,129.33,39.2065]
[1719255360736,3.1625,129.42,129.38,19.3225]
[1719255360933,4.021,129.45,129.38,23.21]
[1719255361131,4.021,129.45,129.39,0.17]
[1719255361358,4.021,129.45,129.4,23.21]
[1719255361561,4.021,129.52,129.41,31.1073]
[1719255361745,25.83,129.5,129.43,23.21]
[1719255361946,4.021,129.52,129.42,7.7266]
[1719255362163,4.021,129.52,129.44,23.21]
[1719255362339,4.021,129.52,129.45,0.17]
[1719255362852,4.021,129.52,129.45,31.1049]
[1719255363059,4.021,129.52,129.44,23.21]
[1719255363551,4.021,129.52,129.45,0.17]
[1719255363754,4.021,129.52,129.46,23.21]
[1719255364855,4.021,129.52,129.45,0.17]
[1719255365036,4.021,129.52,129.45,0.34]
[1719255365637,4.021,129.52,129.45,0.17]
[1719255365858,25.83,129.51,129.41,23.21]
[1719255366064,25.83,129.51,129.4,41.0608]
[1719255366065,25.83,129.51,129.43,23.21]
[1719255366235,4.021,129.52,129.43,23.21]
[1719255366765,0.17,129.51,129.41,23.21]
[1719255366988,4.021,129.52,129.45,23.21]
[1719255367277,4.021,129.52,129.46,23.21]
[1719255367568,4.021,129.52,129.46,30.9341]
[1719255367754,4.021,129.52,129.46,42.5206]
[1719255368056,0.8585,129.52,129.48,30.9331]
[1719255368366,0.8585,129.55,129.47,23.38]
[1719255369065,0.8585,129.55,129.46,7.7242]
[1719255369234,0.8585,129.55,129.45,19.652]
[1719255369440,0.8585,129.55,129.46,23.38]
[1719255369739,0.8585,129.55,129.48,23.21]
[1719255370162,0.8585,129.55,129.48,30.933]
[1719255370370,0.8585,129.55,129.48,23.21]
[1719255370665,0.17,129.54,129.4,60.3792]
[1719255370854,0.34,129.54,129.41,20.0]
[1719255371159,0.34,129.54,129.44,7.7251]
[1719255371566,0.34,129.54,129.45,23.21]
[1719255371868,0.34,129.54,129.44,7.7251]
[1719255371869,0.34,129.54,129.44,30.9354]
[1719255372170,0.8585,129.55,129.47,23.21]
[1719255372349,0.8585,129.55,129.47,30.9336]
[1719255372539,0.8585,129.55,129.46,30.9339]
[1719255372873,0.8585,129.55,129.41,20.0]
[1719255372874,0.8585,129.55,129.48,30.9327]
[1719255373160,0.8585,129.55,129.48,23.21]
[1719255373551,0.8585,129.55,129.45,23.21]
[1719255373755,0.8585,129.55,129.46,0.34]
[1719255374058,0.8585,129.55,129.46,7.8943]
[1719255374259,0.8585,129.55,129.46,0.17]
[1719255374460,0.8585,129.55,129.45,8.0648]
[1719255374763,0.8585,129.55,129.46,30.9338]
[1719255374942,0.8585,129.55,129.47,0.34]
[1719255375147,0.8585,129.55,129.49,23.21]
[1719255375671,0.8585,129.55,129.48,23.21]
[1719255375962,0.8585,129.55,129.47,19.4791]
[1719255376150,0.8585,129.55,129.43,13.785507]
[1719255376355,0.8585,129.55,129.42,7.7265]
[1719255376866,0.8585,129.55,129.5,23.21]
[1719255377558,0.8585,129.55,129.49,19.3061]
[1719255377559,0.8585,129.55,129.49,19.4761]
[1719255377748,0.8585,129.55,129.49,42.6861]
[1719255377949,0.8585,129.55,129.51,23.21]
[1719255378265,0.8585,129.55,129.51,19.3031]
[1719255378849,0.8585,129.55,129.51,42.5131]
[1719255379054,3.1625,129.56,129.51,42.5131]
[1719255379262,0.8585,129.58,129.54,23.21]
[1719255379871,0.8585,129.58,129.5,23.21]
[1719255380047,0.8585,129.58,129.51,0.17]
[1719255380642,0.8585,129.58,129.5,23.21]
[1719255380847,0.17,129.57,129.48,42.5168]
[1719255381648,3.1625,129.56,129.47,23.21]
[1719255381854,0.17,129.55,129.47,23.21]
[1719255382264,3.1625,129.56,129.5,23.21]
[1719255382561,3.1625,129.56,129.5,30.9319]
[1719255383070,3.1625,129.56,129.5,23.21]
[1719255384360,3.1625,129.56,129.49,0.17]
[1719255384969,3.1625,129.56,129.48,0.34]
[1719255385167,3.1625,129.56,129.48,27.2008]
[1719255385347,3.1625,129.56,129.49,7.7224]
[1719255385544,3.1625,129.56,129.49,30.9324]
[1719255386168,3.1625,129.56,129.51,30.9308]
[1719255386348,3.1625,129.56,129.51,23.21]
[1719255386762,3.1625,129.56,129.47,19.3088]
[1719255386968,3.1625,129.56,129.46,7.8941]
[1719255387158,3.1625,129.56,129.46,0.17]
[1719255387470,3.1625,129.56,129.49,7.7224]
[1719255388001,3.1625,129.56,129.49,30.9324]
[1719255388268,3.1625,129.56,129.49,23.21]
[1719255388469,3.1625,129.56,129.5,0.17]
[1719255389979,3.1625,129.56,129.48,23.21]
[1719255390191,3.1625,129.56,129.46,23.21]
[1719255390563,28.9325,129.56,129.46,23.21]
[1719255390765,3.1625,129.56,129.48,23.21]
[1719255390964,3.1625,129.56,129.5,23.21]
[1719255391163,3.1625,129.56,129.52,23.21]
[1719255392282,3.1625,129.56,129.51,23.21]
[1719255393178,3.1625,129.56,129.5,19.4748]
[1719255393379,3.1625,129.56,129.51,0.17]
[1719255394783,3.1625,129.56,129.48,23.21]
[1719255395274,3.1625,129.56,129.49,0.17]
[1719255395657,3.1625,129.56,129.5,23.21]
[1719255395859,3.1625,129.56,129.5,30.932]
[1719255396278,0.8585,129.58,129.52,23.21]
[1719255396490,0.8585,129.58,129.53,0.17]
[1719255396676,0.8585,129.58,129.52,30.9303]
[1719255396882,0.8585,129.58,129.53,0.34]
[1719255397461,0.8585,129.58,129.52,23.21]
[1719255398583,0.8585,129.58,129.51,23.21]
[1719255399157,0.8585,129.58,129.53,30.9301]
[1719255399585,0.8585,129.58,129.53,23.21]
[1719255399766,0.8585,129.58,129.53,30.9301]
[1719255399971,0.8585,129.58,129.54,0.17]
[1719255400165,0.8585,129.58,129.53,30.9301]
[1719255400364,0.8585,129.58,129.54,0.17]
[1719255400579,3.1625,129.59,129.54,42.6788]
[1719255400899,4.8797808,129.62,129.56,23.21]
[1719255401472,4.8797808,129.62,129.57,0.17]
[1719255403189,4.8797808,129.62,129.55,23.21]
[1719255403395,4.8797808,129.62,129.56,0.17]
[1719255403569,4.8797808,129.62,129.55,23.21]
[1719255404297,4.8797808,129.62,129.56,23.21]
[1719255404669,4.8797808,129.62,129.57,7.7175]
[1719255404898,4.8797808,129.62,129.58,23.38]
[1719255405074,0.8587808,129.62,129.58,23.38]
[1719255405769,0.8587808,129.62,129.58,0.17]
[1719255407475,0.8587808,129.62,129.58,23.21]
[1719255408402,0.8587808,129.62,129.57,23.38]
[1719255409175,0.8587808,129.62,129.59,23.21]
[1719255410801,0.8587808,129.62,129.58,23.21]
[1719255411095,0.8587808,129.62,129.59,0.17]
[1719255411294,0.8587808,129.62,129.59,0.34]
[1719255411601,0.8587808,129.62,129.6,23.21]
[1719255411803,0.8587808,129.62,129.6,42.5]
[1719255412097,0.8587808,129.62,129.61,23.21]
[1719255413005,0.8587808,129.62,129.59,23.21]
[1719255413704,0.8587808,129.62,129.53,42.2095]
[1719255413877,4.021,129.61,129.54,23.21]
[1719255414304,4.021,129.61,129.54,30.9293]
[1719255414503,4.021,129.61,129.56,23.21]
[1719255415701,3.1625,129.61,129.56,30.9282]
[1719255416312,3.1625,129.61,129.58,23.21]
[1719255416520,0.8587808,129.62,129.58,23.21]
[1719255417810,0.8587808,129.62,129.59,23.21]
[1719255418402,0.8587808,129.62,129.61,23.21]
[1719255418910,0.8587808,129.62,129.61,23.38]
[1719255419093,0.8587808,129.62,129.61,23.55]
[1719255419585,0.8587808,129.62,129.61,23.38]
[1719255419786,0.8587808,129.62,129.61,23.21]
[1719255420693,0.8587808,129.62,129.61,31.0954]
[1719255420893,0.8587808,129.62,129.61,23.38]
[1719255421093,0.8587808,129.62,129.61,23.55]
[1719255421295,0.8587808,129.62,129.61,31.2654]
[1719255421611,0.8587808,129.62,129.61,23.55]
[1719255421820,0.8587808,129.62,129.61,8.0554]
[1719255422020,0.8585,129.71,129.61,8.0554]
[1719255422021,4.021,129.71,129.66,30.922]
[1719255422934,0.8587808,129.74,129.68,30.9208]
[1719255422935,1.7172808,129.74,129.68,30.9208]
[1719255423221,0.8587808,129.74,129.7,23.21]
[1719255424096,0.8587808,129.74,129.6,54.67485043]
[1719255424297,0.8587808,129.74,129.63,39.2843]
[1719255424618,0.8587808,129.74,129.67,19.2794]
[1719255425005,0.8587808,129.74,129.69,7.7102]
[1719255425193,0.8587808,129.74,129.7,23.21]
[1719255426411,0.8587808,129.74,129.67,23.21]
[1719255426614,0.8587808,129.74,129.67,30.9218]
[1719255426795,0.8587808,129.74,129.68,0.17]
[1719255427590,0.8587808,129.74,129.69,23.21]
[1719255428211,0.8587808,129.74,129.68,0.17]
[1719255428900,0.8587808,129.74,129.67,23.21]
[1719255429105,0.8587808,129.74,129.68,0.17]
[1719255430595,0.8587808,129.74,129.69,23.21]
[1719255430805,0.8587808,129.74,129.69,30.9206]
[1719255431209,0.8587808,129.74,129.7,0.17]
[1719255431518,0.8587808,129.74,129.69,23.21]
[1719255432931,0.8587808,129.74,129.7,23.21]
[1719255433994,0.8587808,129.74,129.66,23.21]
[1719255434196,0.8587808,129.74,129.64,26.9958]
[1719255434197,0.8585,129.73,129.64,19.2827]
[1719255434732,0.8585,129.73,129.63,7.714]
[1719255435020,0.8585,129.73,129.66,23.21]
[1719255435222,0.8585,129.73,129.66,30.9222]
[1719255435415,0.8585,129.73,129.68,23.21]
[1719255435602,0.8585,129.73,129.68,30.9211]
[1719255435802,0.8585,129.73,129.68,23.21]
[1719255436203,0.8585,129.73,129.68,30.9211]
[1719255436420,0.8585,129.73,129.68,23.21]
[1719255436616,0.8585,129.73,129.68,30.9209]
[1719255436920,0.8587808,129.74,129.7,23.21]
[1719255437310,0.8587808,129.74,129.7,30.9195]
[1719255437512,0.8587808,129.74,129.7,23.21]
[1719255438327,0.8587808,129.74,129.69,23.21]
[1719255438504,0.8587808,129.74,129.69,30.9204]
[1719255439400,0.8587808,129.74,129.69,23.21]
[1719255439624,0.8587808,129.74,129.67,30.9214]
[1719255439811,0.8587808,129.74,129.7,23.21]
[1719255440110,0.8587808,129.74,129.68,23.21]
[1719255440309,0.8587808,129.74,129.64,19.2831]
[1719255440518,0.8587808,129.74,129.64,26.9965]
[1719255441099,0.8587808,129.74,129.65,23.21]
[1719255441322,0.8587808,129.74,129.65,30.9228]
[1719255441712,0.8587808,129.74,129.67,23.21]
[1719255441913,0.8587808,129.74,129.71,42.4833]
[1719255442218,0.8587808,129.74,129.71,23.21]
[1719255442722,0.8587808,129.74,129.65,7.7126]
[1719255442931,0.8587808,129.74,129.66,0.17]
[1719255443318,0.8587808,129.74,129.69,19.2756]
[1719255443506,0.8587808,129.74,129.69,23.21]
[1719255445512,0.8587808,129.74,129.69,30.9206]
[1719255446840,0.8587808,129.74,129.71,23.21]
[1719255447628,0.8587808,129.74,129.71,30.9191]
[1719255447825,0.8587808,129.74,129.7,30.9198]
[1719255448049,0.8587808,129.74,129.72,23.21]
[1719255448224,0.8587808,129.74,129.72,30.9188]
[1719255448521,0.8587808,129.74,129.72,23.21]
[1719255450537,0.8587808,129.74,129.73,30.9183]
[1719255450714,0.8587808,129.74,129.73,23.21]
[1719255450919,0.8587808,129.74,129.73,30.9183]
[1719255452624,0.8587808,129.74,129.73,31.0883]
[1719255453738,0.8587808,129.74,129.73,31.2583]
[1719255454045,0.92814,129.8,129.73,31.2583]
[1719255454046,0.92814,129.8,129.79,30.9147]
[1719255454337,0.92814,129.8,129.79,76.1165]
[1719255454516,0.92814,129.8,129.79,76.2865]
[1719255455129,4.8795,129.9,129.82,7.7026]
[1719255455321,4.8795,129.9,129.84,23.21]
[1719255456335,4.8795,129.9,129.82,30.9125]
[1719255456539,4.8795,129.9,129.82,23.21]
[1719255456723,4.8795,129.9,129.82,30.9124]
[1719255456933,4.8795,129.9,129.83,0.17]
[1719255457247,0.8585,129.92,129.84,23.21]
[1719255457542,0.8585,129.92,129.86,23.21]
[1719255458137,0.8585,129.92,129.86,31.0806]
[1719255458334,0.8585,129.92,129.86,31.2506]
[1719255458523,0.8585,129.92,129.86,23.55]
[1719255459125,0.8585,129.92,129.86,23.21]
[1719255459337,0.8585,129.92,129.86,26.07059475]
[1719255459852,0.8585,129.92,129.86,23.21]
[1719255460919,0.8585,129.92,129.86,30.9106]
[1719255461144,0.8585,129.92,129.86,31.2506]
[1719255461321,0.8585,129.92,129.86,0.34]
[1719255461528,4.021,129.93,129.86,31.2506]
[1719255461922,0.8585,129.96,129.86,31.2506]
[1719255462139,5.7379,129.97,129.88,23.21]
[1719255462321,5.7379,129.97,129.88,30.9089]
[1719255462521,5.7379,129.97,129.89,0.17]
[1719255463124,5.7379,129.97,129.88,23.21]
[1719255463346,5.7379,129.97,129.9,23.21]
[1719255464243,5.7379,129.97,129.88,30.9091]
[1719255464449,5.7379,129.97,129.89,0.17]
[1719255465647,8.89468194,130.0,129.9,30.9081]
[1719255465648,0.8587808,130.0,129.9,30.9081]
[1719255465834,0.8587808,130.0,129.91,0.34]
[1719255466034,0.8587808,130.0,129.91,0.17]
[1719255466224,0.8587808,130.0,129.9,23.21]
[1719255466747,0.8587808,130.0,129.91,0.17]
[1719255467743,0.8587808,130.0,129.91,0.34]
[1719255468441,7.6929,129.99,129.91,23.21]
[1719255468646,0.8587808,130.0,129.91,23.21]
[1719255469026,0.8587808,130.0,129.93,7.6961]
[1719255469335,0.8587808,130.0,129.94,23.21]
[1719255469533,0.8587808,130.0,129.94,30.9057]
[1719255469846,0.8587808,130.0,129.95,0.17]
[1719255470143,0.8587808,130.0,129.95,0.34]
[1719255470344,0.8587808,130.0,129.96,31.0746]
[1719255470647,0.8587808,130.0,129.97,0.17]
[1719255471521,0.8587808,130.0,129.96,0.34]
[1719255472245,0.8587808,130.0,129.96,0.17]
[1719255472428,0.8585,129.99,129.94,23.21]
[1719255472628,0.8585,129.99,129.89,21.7088]
[1719255472849,0.8585,129.99,129.92,13.434681]
[1719255473051,0.8585,129.99,129.92,5.738181]
[1719255473263,0.8585,129.99,129.89,29.4074]
[1719255473555,0.8585,129.99,129.9,23.21]
[1719255474248,0.8585,129.99,129.91,23.21]
[1719255475155,0.8585,129.99,129.9,23.21]
[1719255475846,0.8585,129.99,129.9,42.4545]
[1719255476441,0.8585,129.99,129.9,23.21]
[1719255477542,0.8585,129.99,129.88,23.21]
[1719255479240,0.8585,129.99,129.88,30.9094]
[1719255479440,0.8585,129.99,129.89,0.17]
[1719255479641,0.8585,129.99,129.88,23.21]
[1719255480031,0.8585,129.99,129.88,30.9091]
[1719255480231,0.8585,129.99,129.9,23.21]
[1719255481148,0.8585,129.99,129.91,23.21]
[1719255482135,0.8585,129.99,129.9,23.21]
[1719255483146,0.8585,129.99,129.89,19.4169]
[1719255483147,0.8585,129.99,129.89,23.21]
[1719255483336,4.8794,129.97,129.88,23.21]
[1719255483541,8.554,129.95,129.84,259.1]
[1719255483755,4.8794,129.93,129.84,259.1]
[1719255484057,4.8794,129.93,129.77,100.0]
[1719255484058,0.8585,129.91,129.77,22.618]
[1719255484258,4.8794,129.89,129.77,22.618]
[1719255484461,4.8794,129.89,129.76,7.8663]
[1719255484462,0.8585,129.87,129.76,7.8663]
[1719255484638,0.8585,129.87,129.73,2.41862078]
[1719255484639,25.67,129.85,129.73,2.41862078]
[1719255484834,0.34,129.84,129.73,2.41862078]
[1719255485054,0.34,129.84,129.73,29.39612078]
[1719255485254,25.67,129.85,129.75,7.7071]
[1719255485537,25.67,129.85,129.73,29.39652078]
[1719255485752,0.34,129.86,129.75,7.707]
[1719255486241,0.34,129.86,129.74,7.7076]
[1719255486440,0.34,129.86,129.75,23.21]
[1719255486747,8.0406,129.86,129.74,23.21]
[1719255487136,7.7018,129.84,129.74,23.21]
[1719255487337,0.17,129.83,129.74,23.21]
[1719255487737,382.7,129.82,129.74,23.21]
[1719255488533,17.871,129.86,129.74,23.21]
[1719255488534,10.17,129.86,129.74,23.21]
[1719255488736,10.17,129.86,129.75,23.21]
[1719255488936,0.17,129.85,129.75,23.21]
[1719255489165,7.8717,129.85,129.75,23.21]
[1719255489369,7.7019,129.84,129.75,23.21]
[1719255489547,0.34,129.83,129.75,23.21]
[1719255489734,4.8794,129.82,129.72,23.21]
[1719255489937,4.8794,129.82,129.71,12.48470327]
[1719255489938,0.8585,129.8,129.71,4.77540327]
[1719255490158,0.17,129.79,129.67,26.9903]
[1719255490468,0.34,129.79,129.67,19.2786]
[1719255490643,0.8585,129.8,129.71,7.7094]
[1719255490973,0.8585,129.8,129.7,7.7099]
[1719255491260,0.8585,129.8,129.71,30.9194]
[1719255491558,0.8585,129.8,129.71,42.4833]
[1719255492068,0.8585,129.8,129.7,7.8797]
[1719255492267,0.8585,129.8,129.7,30.9197]
[1719255492440,0.8585,129.8,129.71,31.0894]
[1719255492635,0.8585,129.8,129.72,30.9188]
[1719255492838,4.8794,129.82,129.72,23.21]
[1719255493032,0.8585,129.84,129.77,50.1788]
[1719255493250,0.8585,129.84,129.78,30.9148]
[1719255494452,0.8585,129.84,129.77,42.4734]
[1719255494656,0.8585,129.84,129.78,23.21]
[1719255494842,4.8794,129.86,129.79,31.0843]
[1719255495261,4.8794,129.86,129.77,19.4334]
[1719255495585,4.8794,129.86,129.76,27.63716189]
[1719255495861,4.8794,129.86,129.8,7.704]
[1719255496167,4.8794,129.86,129.8,30.914]
[1719255496363,0.8585,129.87,129.81,7.7035]
[1719255496657,0.8585,129.87,129.8,30.9139]
[1719255496879,0.8585,129.87,129.79,50.1761]
[1719255497189,0.8585,129.87,129.77,8.0457]
[1719255497349,0.8585,129.87,129.77,7.8757]
[1719255497867,0.8585,129.87,129.77,31.0857]
[1719255498164,0.8585,129.87,129.79,7.7043]
[1719255498550,5.7379,129.9,129.77,0.17]
[1719255498878,5.7379,129.9,129.82,19.2563]
[1719255499169,5.7379,129.9,129.81,23.21]
[1719255499170,5.7379,129.9,129.81,7.7033]
[1719255499381,5.7379,129.9,129.8,31.084]
[1719255499550,5.7379,129.9,129.81,23.21]
[1719255499751,5.7379,129.9,129.82,30.9128]
[1719255500078,5.7379,129.9,129.84,23.21]
[1719255500260,5.2379,129.9,129.86,23.21]
[1719255500651,6.19413849,129.94,129.87,0.17]
[1719255500652,0.8585,129.94,129.87,0.17]
[1719255500874,0.8585,129.94,129.89,23.21]
[1719255502486,0.8585,129.94,129.9,23.21]
[1719255502653,0.8585,129.94,129.9,30.9082]
[1719255502850,0.8585,129.94,129.9,23.21]
[1719255503175,0.13735763,129.95,129.9,23.21]
[1719255503473,0.13735763,129.95,129.89,25.5303]
[1719255503474,0.13735763,129.95,129.94,42.4496]
[1719255503679,0.13735763,129.95,129.94,23.38]
[1719255503858,0.13735763,129.95,129.94,31.0758]
[1719255504251,0.13735763,129.95,129.94,31.2458]
[1719255508128,0.13735763,129.95,129.94,23.21]
[1719255509298,0.13735763,129.95,129.93,23.21]
[1719255511199,0.13735763,129.95,129.94,30.9058]
[1719255511381,0.13735763,129.95,129.94,31.0758]
[1719255511700,0.8587808,130.0,129.98,23.21]
[1719255511889,0.8587808,130.0,129.99,23.38]
[1719255512286,0.8587808,130.0,129.99,23.21]
[1719255512708,0.8587808,130.0,129.99,23.38]
[1719255512889,0.8587808,130.0,129.99,23.21]
[1719255513199,0.8585,130.09,130.01,23.21]
[1719255513590,12.4040844,130.16,130.03,23.21]
[1719255513782,14.08573249,130.16,130.06,50.1196]
[1719255513984,0.8585,130.17,130.06,50.1196]
[1719255514189,29.94,130.23,130.01,46.1399]
[1719255514190,8.02380753,130.22,130.02,6.4023]
[1719255514415,0.8585,130.26,130.06,29.94]
[1719255514707,7.6793,130.22,130.07,0.34]
[1719255514909,7.6793,130.22,130.08,23.21]
[1719255515211,7.6793,130.22,130.07,7.6879]
[1719255515512,7.6799,130.21,130.08,0.17]
[1719255515693,39.94,130.23,130.08,45.0]
[1719255515893,39.94,130.23,130.05,23.21]
[1719255515894,7.6834,130.15,130.05,23.21]
[1719255516217,16.0964,130.14,129.9,106.5974]
[1719255516388,16.0964,130.14,129.91,29.94]
[1719255516389,17.6852,130.12,129.91,29.94]
[1719255516587,29.94,130.13,129.98,19.2324]
[1719255516818,0.17,130.11,129.99,7.6928]
[1719255517116,0.17,130.12,129.99,23.21]
[1719255517117,0.34,130.12,129.99,23.21]
[1719255517321,0.34,130.12,129.99,7.6923]
[1719255517986,0.34,130.12,130.0,23.21]
[1719255518216,0.34,130.12,129.99,23.38]
[1719255518910,8.0252,130.12,130.0,0.17]
[1719255519220,8.0252,130.12,130.0,68.38]
[1719255519221,0.17,130.12,130.0,68.38]
[1719255519396,0.34,130.13,129.99,23.21]
[1719255519702,8.0247,130.13,129.99,30.9028]
[1719255519910,0.34,130.13,129.99,23.21]
[1719255520099,7.6854,130.12,130.0,23.21]
[1719255520295,0.17,130.11,129.97,19.2348]
[1719255520493,0.17,130.13,129.98,23.21]
[1719255520688,0.34,130.13,130.0,23.21]
[1719255521108,0.34,130.13,129.97,26.9287]
[1719255521495,7.6869,130.09,129.97,23.21]
[1719255521809,0.17,130.1,129.98,23.38]
[1719255521998,0.34,130.1,129.98,23.38]
[1719255522319,45.34,130.1,129.93,19.2407]
[1719255522615,0.8585,130.04,129.92,23.21]
[1719255522812,5.4079,130.03,129.91,29.94]
[1719255523142,0.17,130.02,129.87,19.2493]
[1719255523327,0.17,130.02,129.88,8.5484]